fUSD/lending_fUSD_20260307
["ID","MTS","AMOUNT","RATE_DAILY","PERIOD"]
[407875385,1772868632524,-500.0,0.00015599,2]
[407875386,1772868632533,-500.0,0.00015599,2]
[407875387,1772868632543,-500.0,0.00015599,2]
[407875388,1772868632552,-500.0,0.00015599,2]
[407875389,1772868632561,-500.0,0.00015599,2]
[407875390,1772868632571,-500.0,0.00015599,2]
[407875391,1772868632580,-200.0,0.00015716,2]
[407875392,1772868632590,-2351.0,0.00015729,2]
[407875393,1772868632599,-500.0,0.00015791,2]
[407875394,1772868632609,-10307.79452953,0.00015972,2]
[407875395,1772868632622,-382.59268799,0.00015999,2]
[407875396,1772868632631,-514.27809637,0.00015999,2]
[407875397,1772868632640,-500.0,0.00015999,2]
[407875398,1772868632650,-500.90772637,0.00015999,2]
[407875399,1772868632659,-500.0,0.00015999,2]
[407875400,1772868632669,-500.0,0.00015999,2]
[407875401,1772868632678,-500.0,0.00015999,2]
[407875402,1772868632687,-500.0,0.00015999,2]
[407875403,1772868632696,-238.77585917,0.00015999,2]
[407875404,1772868632705,-500.0,0.00015999,2]
[407875405,1772868632714,-500.0,0.00015999,2]
[407875406,1772868632724,-500.0,0.00015999,2]
[407875407,1772868632733,-500.0,0.00015999,2]
[407875408,1772868632743,-500.0,0.00015999,2]
[407875409,1772868632752,-500.0,0.00015999,2]
[407875410,1772868632762,-500.0,0.00015999,2]
[407875411,1772868632771,-270.68012443,0.00015999,2]
[407875412,1772868632781,-500.0,0.00015999,2]
[407875413,1772868632790,-500.0,0.00015999,2]
[407875414,1772868632799,-500.0,0.00015999,2]
[407875415,1772868632808,-500.0,0.00015999,2]
[407875416,1772868632818,-500.0,0.00015999,2]
[407875417,1772868632828,-500.0,0.00015999,2]
[407875418,1772868632837,-500.0,0.00015999,2]
[407875419,1772868632847,-500.0,0.00015999,2]
[407875420,1772868632856,-500.0,0.00015999,2]
[407875421,1772868632865,-500.0,0.00015999,2]
[407875422,1772868632875,-500.0,0.00015999,2]
[407875423,1772868632884,-500.0,0.00015999,2]
[407875424,1772868632893,-500.0,0.00015999,2]
[407875425,1772868632902,-500.0,0.00015999,2]
[407875426,1772868632911,-500.0,0.00015999,2]
[407875427,1772868632920,-500.0,0.00015999,2]
[407875428,1772868632930,-500.0,0.00015999,2]
[407875429,1772868632939,-500.0,0.00015999,2]
[407875430,1772868632949,-500.0,0.00015999,2]
[407875431,1772868632958,-500.0,0.00015999,2]
[407875432,1772868632967,-500.0,0.00015999,2]
[407875433,1772868632976,-500.0,0.00015999,2]
[407875434,1772868632986,-500.0,0.00015999,2]
[407875435,1772868632995,-500.0,0.00015999,2]
[407875436,1772868633007,-500.0,0.00015999,2]
[407875437,1772868633016,-500.0,0.00015999,2]
[407875438,1772868633025,-500.0,0.00015999,2]
[407875439,1772868633034,-500.0,0.00015999,2]
[407875440,1772868633044,-500.0,0.00015999,2]
[407875441,1772868633053,-500.0,0.00015999,2]
[407875442,1772868633064,-500.0,0.00015999,2]
[407875443,1772868633073,-500.0,0.00015999,2]
[407875444,1772868633083,-500.0,0.00015999,2]
[407875445,1772868633093,-500.0,0.00015999,2]
[407875446,1772868633102,-500.0,0.00015999,2]
[407875447,1772868633111,-500.0,0.00015999,2]
[407875448,1772868633122,-500.0,0.00015999,2]
[407875449,1772868633131,-527.06801244,0.00015999,2]
[407875450,1772868633141,-500.0,0.00015999,2]
[407875451,1772868633150,-500.0,0.00015999,2]
[407875452,1772868633159,-500.0,0.00015999,2]
[407875453,1772868633171,-500.0,0.00015999,2]
[407875454,1772868633181,-500.0,0.00015999,2]
[407875455,1772868633193,-500.0,0.00015999,2]
[407875456,1772868633202,-500.0,0.00015999,2]
[407875457,1772868633212,-500.0,0.00015999,2]
[407875458,1772868633225,-500.0,0.00015999,2]
[407875459,1772868633234,-500.0,0.00015999,2]
[407875460,1772868633243,-500.0,0.00015999,2]
[407875461,1772868633253,-500.0,0.00016,2]
[407875462,1772868633264,-900.0,0.00016,2]
[407875463,1772868633274,-6400.0,0.00016,5]
[407875464,1772868633284,-500.0,0.00016106,2]
[407875465,1772868633293,-151.0,0.00016106,2]
[407875466,1772868633303,-500.0,0.00016106,2]
[407875467,1772868633313,-151.0,0.00016106,2]
[407875468,1772868633322,-500.0,0.00016106,2]
[407875469,1772868633331,-151.0,0.00016106,2]
[407875470,1772868633341,-500.0,0.00016106,2]
[407875471,1772868633350,-151.0,0.00016106,2]
[407875472,1772868633360,-500.0,0.00016106,2]
[407875473,1772868633369,-151.0,0.00016106,2]
[407875474,1772868633378,-500.0,0.00016106,2]
[407875475,1772868633386,-151.0,0.00016106,2]
[407875476,1772868633396,-500.0,0.00016106,2]
[407875477,1772868633405,-151.0,0.00016106,2]
[407875478,1772868633416,-500.0,0.00016106,2]
[407875479,1772868633426,-151.0,0.00016106,2]
[407875480,1772868633436,-500.0,0.00016106,2]
[407875481,1772868633447,-151.0,0.00016106,2]
[407875482,1772868633459,-500.0,0.00016106,2]
[407875483,1772868633469,-151.0,0.00016106,2]
[407875484,1772868633479,-151.0,0.00016106,2]
[407875485,1772868633489,-500.0,0.00016106,2]
[407875486,1772868633499,-500.0,0.00016106,2]
[407875487,1772868633510,-500.0,0.00016106,2]
[407875488,1772868633521,-500.0,0.00016106,2]
[407875489,1772868633533,-500.0,0.00016106,2]
[407875490,1772868633542,-500.0,0.00016106,2]
[407875491,1772868633553,-200.0,0.00016106,2]
[407875492,1772868633563,-500.0,0.00016106,2]
[407875493,1772868633573,-500.0,0.00016106,2]
[407875494,1772868633582,-500.0,0.00016106,2]
[407875495,1772868633592,-500.0,0.00016106,2]
[407875496,1772868633601,-500.0,0.00016106,2]
[407875497,1772868633611,-151.0,0.00016106,2]
[407875498,1772868633621,-151.0,0.00016106,2]
[407875499,1772868633630,-151.0,0.00016106,2]
[407875500,1772868633640,-151.0,0.00016106,2]
[407875501,1772868633649,-151.0,0.00016106,2]
[407875502,1772868633659,-151.0,0.00016106,2]
[407875503,1772868633668,-151.0,0.00016106,2]
[407875504,1772868633677,-151.0,0.00016106,2]
[407875505,1772868633686,-151.0,0.00016106,2]
[407875506,1772868633696,-151.0,0.00016106,2]
[407875507,1772868633705,-151.0,0.00016106,2]
[407875508,1772868633715,-151.0,0.00016106,2]
[407875509,1772868633724,-151.0,0.00016106,2]
[407875510,1772868633734,-151.0,0.00016106,2]
[407875511,1772868633743,-151.0,0.00016106,2]
[407875512,1772868633752,-151.0,0.00016106,2]
[407875513,1772868633762,-151.0,0.00016106,2]
[407875514,1772868633771,-151.0,0.00016106,2]
[407875515,1772868633780,-151.0,0.00016106,2]
[407875516,1772868633790,-154.94742693,0.00016106,2]
[407875517,1772868633799,-1507.35,0.00016121,2]
[407875518,1772868633809,-162.05,0.00016123,2]
[407875519,1772868633818,-255.66666161,0.00016333,2]
[407875520,1772868633827,-1261.1079075,0.00016333,2]
[407875521,1772868633837,-162.05,0.00016393,2]
[407875522,1772868633847,-10307.79452953,0.00016463,2]
[407875523,1772868633856,-520.0,0.00016508,4]
[407875524,1772868633866,-400.0,0.000166,6]
[407875525,1772868633875,-400.0,0.000166,6]
[407875526,1772868633884,-736.0,0.000166,2]
[407875527,1772868633894,-1261.1079075,0.00016632,2]
[407875528,1772868633903,-200.0,0.00016659,2]
[407875529,1772868633913,-162.05,0.00016663,2]
[407875530,1772868633923,-828.01307457,0.000167,2]
[407875531,1772868634274,-900.0,0.000167,6]
[407875532,1772868634284,-8531.31265298,0.000167,2]
[407875533,1772868634293,-583.62081871,0.000167,2]
[407875534,1772868634303,-731.74570282,0.000167,2]
[407875535,1772868634311,-23699.77822683,0.000167,2]
[407875536,1772868634321,-800.0,0.000167,6]
[407875537,1772868634331,-222.52962527,0.000167,2]
[407875538,1772868634340,-500.0,0.00016709,2]
[407875539,1772868634349,-3664.0,0.00016767,2]
[407875540,1772868634358,-1091.27382541,0.0001679,2]
[407875541,1772868634368,-151.0,0.00016797,2]
[407875542,1772868634377,-500.0,0.00016799,2]
[407875543,1772868634386,-500.0,0.00016799,2]
[407875544,1772868634396,-500.0,0.00016799,2]
[407875545,1772868634406,-500.0,0.00016799,2]
[407875546,1772868634416,-500.0,0.00016799,2]
[407875547,1772868634425,-500.0,0.00016799,2]
[407875548,1772868634435,-500.0,0.00016799,2]
[407875549,1772868634443,-500.0,0.00016799,2]
[407875550,1772868634452,-500.0,0.00016799,2]
[407875551,1772868634461,-500.0,0.00016799,2]
[407875552,1772868634470,-500.0,0.00016799,2]
[407875553,1772868634479,-500.0,0.00016799,2]
[407875554,1772868634488,-500.0,0.00016799,2]
[407875555,1772868634497,-500.0,0.00016799,2]
[407875556,1772868634506,-500.0,0.00016799,2]
[407875557,1772868634515,-500.0,0.00016799,2]
[407875558,1772868634524,-500.0,0.00016799,2]
[407875559,1772868634533,-500.0,0.00016799,2]
[407875560,1772868634542,-500.0,0.00016799,2]
[407875561,1772868634551,-500.0,0.00016799,2]
[407875562,1772868634561,-504.66308381,0.00016799,2]
[407875563,1772868634570,-500.0,0.00016799,2]
[407875564,1772868634580,-500.0,0.00016799,2]
[407875565,1772868634590,-500.0,0.00016799,2]
[407875566,1772868634599,-500.0,0.00016799,2]
[407875567,1772868634609,-500.0,0.00016799,2]
[407875568,1772868634621,-500.0,0.00016799,2]
[407875569,1772868634631,-500.0,0.00016799,2]
[407875570,1772868634641,-500.0,0.00016799,2]
[407875571,1772868634650,-500.0,0.00016799,2]
[407875572,1772868634659,-500.0,0.00016799,2]
[407875573,1772868634669,-500.0,0.00016799,2]
[407875574,1772868634678,-500.0,0.00016799,2]
[407875575,1772868634688,-500.0,0.00016799,2]
[407875576,1772868634697,-500.0,0.00016799,2]
[407875577,1772868634706,-500.0,0.00016799,2]
[407875578,1772868634716,-500.0,0.00016799,2]
[407875579,1772868634725,-500.0,0.00016799,2]
[407875580,1772868634735,-500.0,0.00016799,2]
[407875581,1772868634746,-500.0,0.00016799,2]
[407875582,1772868634755,-500.0,0.00016799,2]
[407875583,1772868634765,-500.0,0.00016799,2]
[407875584,1772868634774,-500.0,0.00016799,2]
[407875585,1772868634783,-500.0,0.00016799,2]
[407875586,1772868634792,-500.0,0.00016799,2]
[407875587,1772868634802,-500.0,0.00016799,2]
[407875588,1772868634811,-502.54816395,0.00016799,2]
[407875589,1772868634820,-500.0,0.00016799,2]
[407875590,1772868634830,-500.0,0.00016799,2]
[407875591,1772868634841,-500.0,0.00016799,2]
[407875592,1772868634850,-500.0,0.00016799,2]
[407875593,1772868634860,-500.0,0.00016799,2]
[407875594,1772868634869,-500.0,0.00016799,2]
[407875595,1772868634878,-500.0,0.00016799,2]
[407875596,1772868634889,-500.0,0.00016799,2]
[407875597,1772868634899,-500.0,0.00016799,2]
[407875598,1772868634909,-500.0,0.00016799,2]
[407875599,1772868634918,-500.0,0.00016799,2]
[407875600,1772868634927,-500.0,0.00016799,2]
[407875601,1772868634936,-500.0,0.00016799,2]
[407875602,1772868634947,-500.0,0.00016799,2]
[407875603,1772868634956,-500.0,0.00016799,2]
[407875604,1772868634967,-500.0,0.00016799,2]
[407875605,1772868634978,-500.0,0.00016799,2]
[407875606,1772868634988,-500.0,0.00016799,2]
[407875607,1772868635000,-500.0,0.00016799,2]
[407875608,1772868635012,-500.0,0.00016799,2]
[407875609,1772868635022,-517.33931831,0.00016799,2]
[407875610,1772868635031,-500.0,0.00016799,2]
[407875611,1772868635041,-500.0,0.00016799,2]
[407875612,1772868635050,-500.0,0.00016799,2]
[407875613,1772868635060,-500.0,0.00016799,2]
[407875614,1772868635069,-500.0,0.00016799,2]
[407875615,1772868635078,-500.0,0.00016799,2]
[407875616,1772868635088,-500.0,0.00016799,2]
[407875617,1772868635098,-500.0,0.00016799,2]
[407875618,1772868635107,-505.88225533,0.00016799,2]
[407875619,1772868635117,-500.0,0.00016799,2]
[407875620,1772868635127,-207.11048324,0.00016799,2]
[407875621,1772868635136,-500.0,0.00016799,2]
[407875622,1772868635146,-266.62395928,0.00016799,2]
[407875623,1772868635155,-504.13031812,0.00016799,2]
[407875624,1772868635164,-500.0,0.00016799,2]
[407875625,1772868635173,-500.0,0.00016799,2]
[407875626,1772868635182,-500.0,0.00016799,2]
[407875627,1772868635192,-236.29615232,0.00016799,2]
[407875628,1772868635201,-249.78076786,0.00016799,2]
[407875629,1772868635211,-177.10872667,0.00016799,2]
[407875630,1772868635221,-2500000.0,0.000168,2]
[407875631,1772868635230,-1400.0,0.000168,6]
[407875632,1772868635239,-1200.0,0.000168,6]
[407875633,1772868635248,-1507.35,0.00016822,2]
[407875634,1772868635257,-1900.0,0.000169,6]
[407875635,1772868635266,-1600.0,0.000169,6]
[407875636,1772868635276,-1588.09,0.00016922,2]
[407875637,1772868635285,-1261.1079075,0.00016931,2]
[407875638,1772868635295,-162.05,0.00016933,2]
[407875639,1772868635304,-10307.79452953,0.00016953,2]
[407875640,1772868635313,-23699.77822676,0.00017056,2]
[407875641,1772868635322,-162.05,0.00017203,2]
[407875642,1772868635331,-1261.1079075,0.0001723,2]
[407875643,1772868635340,-828.01307457,0.00017233,2]
[407875644,1772868635350,-500.0,0.00017258,2]
[407875645,1772868635359,-150.0,0.00017258,2]
[407875646,1772868635369,-150.0,0.00017258,2]
[407875647,1772868635378,-150.0,0.00017258,2]
[407875648,1772868635388,-500.0,0.00017258,2]
[407875649,1772868635397,-3292.0,0.00017302,2]
[407875650,1772868635407,-500.0,0.00017313,2]
[407875651,1772868635416,-150.0,0.00017313,2]
[407875652,1772868635425,-228.41522971,0.00017313,2]
[407875653,1772868635435,-150.0,0.00017313,2]
[407875654,1772868635445,-500.0,0.00017313,2]
[407875655,1772868635454,-500.85972923,0.00017368,2]
[407875656,1772868635464,-150.34450835,0.00017368,2]
[407875657,1772868635474,-161.32097098,0.00017368,2]
[407875658,1772868635483,-500.0,0.00017368,2]
[407875659,1772868635492,-900.0,0.0001737,2]
[407875660,1772868635502,-255.66666161,0.00017379,2]
[407875661,1772868635511,-23699.77822676,0.00017411,2]
[407875662,1772868635521,-500.0,0.00017422,2]
[407875663,1772868635530,-10307.79452953,0.00017444,2]
[407875664,1772868635539,-162.05,0.00017473,2]
[407875665,1772868635548,-358.71326845,0.00017477,2]
[407875666,1772868635558,-1600.0,0.00017529,2]
[407875667,1772868635567,-1261.1079075,0.00017529,2]
[407875668,1772868635577,-574.17,0.0001758,2]
[407875669,1772868635586,-162.05,0.00017743,2]
[407875670,1772868635595,-828.01307457,0.00017767,2]
[407875671,1772868635605,-23699.77822676,0.00017767,2]
[407875672,1772868635615,-402374.1498,0.000178,2]
[407875673,1772868635624,-801.04557151,0.00017808,2]
[407875674,1772868635633,-1261.1079075,0.00017828,7]
[407875675,1772868635643,-3901.88825898,0.000179,2]
[407875676,1772868635652,-3901.88825897,0.000179,2]
[407875677,1772868635661,-3901.88825897,0.000179,2]
[407875678,1772868635671,-3901.88825897,0.000179,2]
[407875679,1772868635680,-150.0,0.00017915,2]
[407875680,1772868635689,-150.0,0.00017915,2]
[407875681,1772868635699,-150.0,0.00017915,2]
[407875682,1772868635708,-150.0,0.00017915,2]
[407875683,1772868635718,-150.0,0.00017915,2]
[407875684,1772868635727,-451.0,0.00017915,2]
[407875685,1772868635736,-500.0,0.00017915,2]
[407875686,1772868635746,-500.0,0.00017915,2]
[407875687,1772868635755,-150.0,0.00017915,2]
[407875688,1772868635764,-1197.0,0.00017915,2]
[407875689,1772868635775,-500.0,0.00017915,2]
[407875690,1772868635784,-639.0,0.00017915,2]
[407875691,1772868635793,-500.0,0.00017915,2]
[407875692,1772868635803,-1988.0,0.00017915,2]
[407875693,1772868635812,-916.0,0.00017915,2]
[407875694,1772868635822,-500.0,0.00017915,2]
[407875695,1772868635831,-500.0,0.00017915,2]
[407875696,1772868635841,-923.0,0.00017915,2]
[407875697,1772868635850,-500.0,0.00017915,2]
[407875698,1772868635860,-500.0,0.00017915,2]
[407875699,1772868635869,-150.0,0.00017915,2]
[407875700,1772868635879,-522.0,0.00017915,2]
[407875701,1772868635888,-150.0,0.00017915,2]
[407875702,1772868635897,-500.0,0.00017915,2]
[407875703,1772868635907,-500.0,0.00017915,2]
[407875704,1772868635916,-973.0,0.00017915,2]
[407875705,1772868635925,-10307.79452953,0.00017935,2]
[407875706,1772868635934,-150.0,0.0001797,2]
[407875707,1772868635943,-150.0,0.0001797,2]
[407875708,1772868635952,-250.0,0.0001797,2]
[407875709,1772868635962,-150.0,0.0001797,2]
[407875710,1772868635971,-150.0,0.0001797,2]
[407875711,1772868635980,-451.0,0.0001797,2]
[407875712,1772868635990,-500.0,0.0001797,2]
[407875713,1772868635999,-504.99757389,0.0001797,2]
[407875714,1772868636012,-1197.0,0.0001797,2]
[407875715,1772868636022,-500.0,0.0001797,2]
[407875716,1772868636031,-639.0,0.0001797,2]
[407875717,1772868636040,-500.0,0.0001797,2]
[407875718,1772868636050,-1988.0,0.0001797,2]
[407875719,1772868636059,-916.0,0.0001797,2]
[407875720,1772868636068,-500.0,0.0001797,2]
[407875721,1772868636079,-500.42886852,0.0001797,2]
[407875722,1772868636088,-923.0,0.0001797,2]
[407875723,1772868636098,-500.85355139,0.0001797,2]
[407875724,1772868636106,-500.0,0.0001797,2]
[407875725,1772868636116,-522.0,0.0001797,2]
[407875726,1772868636125,-150.0,0.0001797,2]
[407875727,1772868636134,-500.0,0.0001797,2]
[407875728,1772868636144,-500.0,0.0001797,2]
[407875729,1772868636153,-973.0,0.0001797,2]
[407875730,1772868636163,-200.479585,0.00018,2]
[407875731,1772868636172,-162.05,0.00018013,2]
[407875732,1772868636182,-1252.0,0.00018017,2]
[407875733,1772868636191,-150.0,0.00018025,2]
[407875734,1772868636200,-150.0,0.00018025,2]
[407875735,1772868636209,-150.0,0.00018025,2]
[407875736,1772868636218,-150.0,0.00018025,2]
[407875737,1772868636228,-451.0,0.00018025,2]
[407875738,1772868636237,-410.84240121,0.00018025,2]
[407875739,1772868636248,-1197.0,0.00018025,2]
[407875740,1772868636257,-500.0,0.00018025,2]
[407875741,1772868636266,-639.0,0.00018025,2]
[407875742,1772868636276,-500.0,0.00018025,2]
[407875743,1772868636285,-1988.0,0.00018025,2]
[407875744,1772868636295,-916.0,0.00018025,2]
[407875745,1772868636304,-500.0,0.00018025,2]
[407875746,1772868636313,-923.0,0.00018025,2]
[407875747,1772868636322,-500.0,0.00018025,2]
[407875748,1772868636332,-522.0,0.00018025,2]
[407875749,1772868636342,-200.94808155,0.00018025,2]
[407875750,1772868636352,-500.0,0.00018025,2]
[407875751,1772868636362,-500.0,0.00018025,2]
[407875752,1772868636372,-973.0,0.00018025,2]
[407875753,1772868636381,-150.0,0.00018079,2]
[407875754,1772868636390,-150.0,0.00018079,2]
[407875755,1772868636400,-150.0,0.00018079,2]
[407875756,1772868636410,-150.0,0.00018079,2]
[407875757,1772868636420,-451.0,0.00018079,2]
[407875758,1772868636431,-1197.0,0.00018079,2]
[407875759,1772868636441,-500.0,0.00018079,2]
[407875760,1772868636454,-639.0,0.00018079,2]
[407875761,1772868636463,-500.0,0.00018079,2]
[407875762,1772868636473,-1988.0,0.00018079,2]
[407875763,1772868636482,-916.0,0.00018079,2]
[407875764,1772868636491,-500.0,0.00018079,2]
[407875765,1772868636501,-923.0,0.00018079,2]
[407875766,1772868636510,-500.0,0.00018079,2]
[407875767,1772868636519,-522.0,0.00018079,2]
[407875768,1772868636529,-500.0,0.00018079,2]
[407875769,1772868636539,-500.0,0.00018079,2]
[407875770,1772868636549,-973.0,0.00018079,2]
[407875771,1772868636561,-23699.77822676,0.00018122,2]
[407875772,1772868636574,-1261.1079075,0.00018127,7]
[407875773,1772868636584,-150.0,0.00018134,2]
[407875774,1772868636594,-150.0,0.00018134,2]
[407875775,1772868636605,-150.0,0.00018134,2]
[407875776,1772868636614,-222.1097908,0.00018134,2]
[407875777,1772868636624,-451.0,0.00018134,2]
[407875778,1772868636636,-1197.0,0.00018134,2]
[407875779,1772868636646,-500.0,0.00018134,2]
[407875780,1772868636657,-639.0,0.00018134,2]
[407875781,1772868636666,-500.0,0.00018134,2]
[407875782,1772868636676,-1988.0,0.00018134,2]
[407875783,1772868636685,-916.0,0.00018134,2]
[407875784,1772868636694,-500.0,0.00018134,2]
[407875785,1772868636704,-923.0,0.00018134,2]
[407875786,1772868636715,-500.0,0.00018134,2]
[407875787,1772868636725,-522.0,0.00018134,2]
[407875788,1772868636734,-500.0,0.00018134,2]
[407875789,1772868636743,-500.0,0.00018134,2]
[407875790,1772868636754,-973.0,0.00018134,2]
[407875791,1772868636764,-166.68,0.00018165,2]
[407875792,1772868636773,-200.0,0.00018167,2]
[407875793,1772868636782,-250.0,0.00018189,2]
[407875794,1772868636791,-250.0,0.00018189,2]
[407875795,1772868636801,-250.0,0.00018189,2]
[407875796,1772868636810,-451.0,0.00018189,2]
[407875797,1772868636819,-1197.0,0.00018189,2]
[407875798,1772868636829,-500.0,0.00018189,2]
[407875799,1772868636839,-639.0,0.00018189,2]
[407875800,1772868636848,-500.0,0.00018189,2]
[407875801,1772868636857,-916.0,0.00018189,2]
[407875802,1772868636866,-1988.0,0.00018189,2]
[407875803,1772868636876,-500.0,0.00018189,2]
[407875804,1772868636885,-923.0,0.00018189,2]
[407875805,1772868636894,-500.0,0.00018189,2]
[407875806,1772868636903,-522.0,0.00018189,2]
[407875807,1772868636913,-554.61846768,0.00018189,2]
[407875808,1772868636923,-500.0,0.00018189,2]
[407875809,1772868636932,-973.0,0.00018189,2]
[407875810,1772868636941,-451.0,0.00018244,2]
[407875811,1772868636950,-1197.0,0.00018244,2]
[407875812,1772868636960,-500.0,0.00018244,2]
[407875813,1772868636970,-639.0,0.00018244,2]
[407875814,1772868636979,-500.0,0.00018244,2]
[407875815,1772868636988,-916.0,0.00018244,2]
[407875816,1772868636998,-1988.0,0.00018244,2]
[407875817,1772868637010,-351.70358089,0.00018244,2]
[407875818,1772868637019,-923.0,0.00018244,2]
[407875819,1772868637028,-500.0,0.00018244,2]
[407875820,1772868637038,-522.0,0.00018244,2]
[407875821,1772868637048,-500.0,0.00018244,2]
[407875822,1772868637057,-973.0,0.00018244,2]
[407875823,1772868637066,-162.05,0.00018283,2]
[407875824,1772868637075,-151.0,0.00018297,2]
[407875825,1772868637084,-451.0,0.00018299,2]
[407875826,1772868637093,-1197.0,0.00018299,2]
[407875827,1772868637102,-500.0,0.00018299,2]
[407875828,1772868637112,-639.0,0.00018299,2]
[407875829,1772868637121,-464.79407583,0.00018299,2]
[407875830,1772868637130,-916.0,0.00018299,2]
[407875831,1772868637139,-1988.0,0.00018299,2]
[407875832,1772868637148,-923.0,0.00018299,2]
[407875833,1772868637157,-500.0,0.00018299,2]
[407875834,1772868637167,-522.0,0.00018299,2]
[407875835,1772868637176,-500.0,0.00018299,2]
[407875836,1772868637185,-973.0,0.00018299,2]
[407875837,1772868637194,-828.01307457,0.000183,2]
[407875838,1772868637203,-8531.31265296,0.000183,2]
[407875839,1772868637212,-583.62081869,0.000183,2]
[407875840,1772868637222,-731.74570281,0.000183,2]
[407875841,1772868637231,-222.52962526,0.000183,3]
[407875842,1772868637240,-200.0,0.0001834,2]
[407875843,1772868637250,-451.0,0.00018353,2]
[407875844,1772868637259,-1197.0,0.00018353,2]
[407875845,1772868637268,-500.0,0.00018353,2]
[407875846,1772868637277,-639.0,0.00018353,2]
[407875847,1772868637286,-916.0,0.00018353,2]
[407875848,1772868637296,-1988.0,0.00018353,2]
[407875849,1772868637305,-923.0,0.00018353,2]
[407875850,1772868637314,-500.0,0.00018353,2]
[407875851,1772868637323,-522.0,0.00018353,2]
[407875852,1772868637332,-500.0,0.00018353,2]
[407875853,1772868637342,-973.0,0.00018353,2]
[407875854,1772868637351,-451.0,0.00018408,2]
[407875855,1772868637361,-1197.0,0.00018408,2]
[407875856,1772868637370,-256.91112057,0.00018408,2]
[407875857,1772868637379,-639.0,0.00018408,2]
[407875858,1772868637388,-916.0,0.00018408,2]
[407875859,1772868637397,-1988.0,0.00018408,2]
[407875860,1772868637407,-923.0,0.00018408,2]
[407875861,1772868637416,-273.854613,0.00018408,2]
[407875862,1772868637424,-522.0,0.00018408,2]
[407875863,1772868637434,-500.0,0.00018408,2]
[407875864,1772868637443,-973.0,0.00018408,2]
[407875865,1772868637452,-10307.79452953,0.00018426,2]
[407875866,1772868637462,-255.66666161,0.00018426,7]
[407875867,1772868637471,-1261.1079075,0.00018426,7]
[407875868,1772868637480,-451.0,0.00018463,2]
[407875869,1772868637489,-1197.0,0.00018463,2]
[407875870,1772868637498,-639.0,0.00018463,2]
[407875871,1772868637507,-916.0,0.00018463,2]
[407875872,1772868637516,-1988.0,0.00018463,2]
[407875873,1772868637525,-923.0,0.00018463,2]
[407875874,1772868637534,-522.0,0.00018463,2]
[407875875,1772868637543,-500.0,0.00018463,2]
[407875876,1772868637553,-973.0,0.00018463,2]
[407875877,1772868637562,-23699.77822676,0.00018478,2]
[407875878,1772868637571,-451.0,0.00018518,2]
[407875879,1772868637580,-1197.0,0.00018518,2]
[407875880,1772868637590,-639.0,0.00018518,2]
[407875881,1772868637599,-916.0,0.00018518,2]
[407875882,1772868637608,-1988.0,0.00018518,2]
[407875883,1772868637617,-923.0,0.00018518,2]
[407875884,1772868637626,-522.0,0.00018518,2]